bitfinex/quotes_SOLUSD_20241116
["timestamp","ask_amount","ask_price","bid_price","bid_amount"]
[1731763056676,0.2,220.56,220.5,0.09367462]
[1731763057253,1.3602,220.55,220.5,0.09367462]
[1731763057658,1.3602,220.55,220.5,23.87055862]
[1731763058878,1.3601,220.57,220.5,37.42927535]
[1731763059075,1.3601,220.57,220.5,23.87055862]
[1731763060875,0.90668264,220.56,220.5,23.87055862]
[1731763061480,0.1,220.54,220.5,0.09367462]
[1731763061691,1.00668264,220.54,220.5,0.09367462]
[1731763061987,0.1,220.52,220.5,0.09367462]
[1731763062659,1.3604,220.51,220.5,0.09367462]
[1731763063568,0.1,220.55,220.5,0.09367462]
[1731763063569,1.3603,220.53,220.5,0.09367462]
[1731763063988,1.3603,220.53,220.5,23.87055862]
[1731763065796,0.90668264,220.52,220.5,0.09367462]
[1731763066186,0.1,220.51,220.5,0.09367462]
[1731763066383,0.90668264,220.52,220.5,0.09367462]
[1731763067487,0.1,220.53,220.5,0.09367462]
[1731763067488,1.3604,220.51,220.5,0.09367462]
[1731763069010,1.3603,220.53,220.5,23.87055862]
[1731763070600,1.3602,220.55,220.5,23.87055862]
[1731763070904,0.90668264,220.54,220.5,23.87055862]
[1731763071703,1.3603,220.53,220.5,23.87055862]
[1731763072592,1.3602,220.55,220.5,23.87055862]
[1731763072802,0.90668264,220.54,220.5,23.87055862]
[1731763073894,1.3602,220.55,220.5,23.87055862]
[1731763074088,0.2,220.51,220.5,0.09367462]
[1731763074886,0.2,220.51,220.3,0.1]
[1731763074887,0.1,220.47,220.35,4.5381]
[1731763075092,0.1,220.47,220.35,18.09681673]
[1731763075288,0.1,220.49,220.35,29.44231673]
[1731763075590,1.00668264,220.49,220.35,29.44231673]
[1731763076191,1.3606,220.48,220.36,24.027864]
[1731763076514,0.90668264,220.47,220.36,24.027864]
[1731763077894,1.3607,220.46,220.36,24.027864]
[1731763078212,0.90668264,220.45,220.36,24.027864]
[1731763078397,0.2,220.42,220.3,11.3481]
[1731763078583,0.1,220.42,220.3,11.3481]
[1731763078788,0.90668264,220.42,220.3,11.3481]
[1731763079205,1.00668264,220.42,220.3,11.3481]
[1731763079600,1.361,220.41,220.3,15.8873]
[1731763080201,1.361,220.41,220.27,0.517778]
[1731763080202,0.1,220.39,220.27,0.517778]
[1731763080507,0.90668264,220.4,220.29,13.55871673]
[1731763080692,0.90668264,220.4,220.3,0.09367462]
[1731763081488,1.3612,220.39,220.31,0.12549]
[1731763081889,1.3612,220.39,220.31,13.70549]
[1731763082093,1.3612,220.39,220.32,23.776884]
[1731763082524,1.3612,220.39,220.31,0.25098]
[1731763082715,1.361,220.42,220.31,0.25098]
[1731763082894,0.90668264,220.41,220.31,0.25098]
[1731763084012,0.90668264,220.41,220.26,4.5399]
[1731763084013,0.1,220.38,220.26,4.5399]
[1731763084194,0.90668264,220.39,220.31,13.55871673]
[1731763084391,2.26778264,220.4,220.31,13.55871673]
[1731763084598,2.26778264,220.4,220.27,16.407178]
[1731763084599,1.3611,220.4,220.32,0.09367462]
[1731763084904,0.90668264,220.39,220.28,13.55871673]
[1731763085211,0.90668264,220.39,220.29,0.09367462]
[1731763085516,1.3612,220.38,220.29,24.12153862]
[1731763085818,0.90668264,220.37,220.29,0.34465462]
[1731763086192,1.3612,220.38,220.29,0.34465462]
[1731763086715,1.3612,220.38,220.31,0.12549]
[1731763087198,1.3612,220.38,220.3,0.12549]
[1731763087388,0.1,220.36,220.28,23.776884]
[1731763087594,1.00668264,220.37,220.28,23.776884]
[1731763087595,1.10668264,220.37,220.28,23.776884]
[1731763088221,0.1,220.35,220.28,23.776884]
[1731763088513,0.1,220.35,220.27,0.517778]
[1731763088514,1.3615,220.34,220.27,0.517778]
[1731763088696,0.90668264,220.33,220.27,0.517778]
[1731763089715,1.3616,220.32,220.27,0.517778]
[1731763089918,0.90668264,220.31,220.27,0.517778]
[1731763090091,20.1,220.35,220.34,159.93171736]
[1731763090288,0.1,220.35,220.27,0.517778]
[1731763091214,3.4035,220.36,220.27,0.517778]
[1731763091397,0.1,220.35,220.27,0.517778]
[1731763091718,3.4035,220.36,220.27,0.517778]
[1731763091905,1.3612,220.39,220.27,0.517778]
[1731763091906,1.4612,220.39,220.27,0.517778]
[1731763092225,0.1,220.37,220.27,0.517778]
[1731763092401,1.4612,220.39,220.27,0.517778]
[1731763092602,0.1,220.37,220.27,0.517778]
[1731763093299,1.3614,220.36,220.27,0.517778]
[1731763094321,3.503,220.39,220.27,0.517778]
[1731763094528,0.1,220.37,220.27,0.517778]
[1731763095035,1.3612,220.38,220.27,0.617778]
[1731763095331,1.3612,220.38,220.28,23.776884]
[1731763096627,1.3611,220.4,220.29,0.22549]
[1731763096934,1.3611,220.4,220.31,0.1]
[1731763097809,1.361,220.42,220.31,0.1]
[1731763099030,0.1,220.43,220.31,0.1]
[1731763099233,4.7633,220.44,220.31,0.1]
[1731763099409,0.1,220.43,220.31,0.1]
[1731763100230,0.09367462,220.32,220.27,0.517778]
[1731763100415,0.09367462,220.3,220.27,0.517778]
[1731763100725,0.1,220.29,220.27,0.517778]
[1731763101228,26.07174614,220.35,220.34,118.52012397]
[1731763101443,46.07174614,220.35,220.34,78.54565338]
[1731763102435,46.07174614,220.35,220.34,53.96321025]
[1731763102625,23.65626214,220.35,220.34,49.95261025]
[1731763102829,21.61238,220.35,220.34,49.95261025]
[1731763103329,1.70605462,220.35,220.34,49.95261025]
[1731763104135,1.25225462,220.35,220.34,49.95261025]
[1731763105538,45.02913862,220.35,220.34,48.34841025]
[1731763105749,21.25225462,220.35,220.34,48.02761025]
[1731763105943,45.02913862,220.35,220.34,47.86721025]
[1731763106243,47.07302076,220.35,220.34,37.40471025]
[1731763106545,47.07302076,220.35,220.34,1.025e-05]
[1731763106736,44.12153862,220.34,220.27,8.825e-05]
[1731763106941,182.52153862,220.34,220.27,8.825e-05]
[1731763107124,0.09367462,220.3,220.27,8.825e-05]
[1731763107324,24.12153862,220.3,220.27,8.825e-05]
[1731763107532,0.25098,220.28,220.27,8.825e-05]
[1731763109028,0.34465462,220.28,220.27,8.825e-05]
[1731763109345,0.9078,220.29,220.27,8.825e-05]
[1731763110631,3.52175462,220.32,220.27,8.825e-05]
[1731763111327,23.52175462,220.32,220.27,8.825e-05]
[1731763113845,0.9077,220.32,220.27,8.825e-05]
[1731763114041,2.2689,220.37,220.27,8.825e-05]
[1731763114347,1.1345,220.35,220.27,8.825e-05]
[1731763116959,0.6345,220.35,220.27,8.825e-05]
[1731763117128,2.2689,220.37,220.27,8.825e-05]
[1731763117129,0.09367462,220.36,220.27,8.825e-05]
[1731763117436,0.12549,220.35,220.27,8.825e-05]
[1731763117632,0.25098,220.35,220.27,8.825e-05]
[1731763118044,1.83928,220.35,220.27,8.825e-05]
[1731763123160,1.1345,220.35,220.27,8.825e-05]
[1731763123876,23.87055862,220.34,220.27,8.825e-05]
[1731763124167,0.09367462,220.32,220.27,8.825e-05]
[1731763124745,0.09367462,220.3,220.27,8.825e-05]
[1731763125963,0.12549,220.31,220.27,8.825e-05]
[1731763126174,0.09367462,220.3,220.27,8.825e-05]
[1731763126349,1.5885,220.32,220.27,8.825e-05]
[1731763128252,1.1347,220.32,220.27,8.825e-05]
[1731763128460,0.09367462,220.31,220.27,8.825e-05]
[1731763128770,0.34465462,220.31,220.27,8.825e-05]
[1731763129554,1.1347,220.32,220.27,8.825e-05]
[1731763145171,0.4538,220.34,220.27,0.10008825]
[1731763145489,0.4538,220.34,220.28,0.1]
[1731763145781,0.4538,220.34,220.29,0.1]
[1731763145979,0.4538,220.34,220.3,0.1]
[1731763146187,0.4538,220.34,220.32,0.1]
[1731763146969,1.1344,220.37,220.3,0.1]
[1731763147188,1.1344,220.37,220.32,0.1]
[1731763147480,1.1344,220.37,220.29,0.1]
[1731763147481,1.1344,220.37,220.3,0.1]
[1731763148264,1.1344,220.37,220.28,0.1]
[1731763149287,20.0,220.36,220.28,0.1]
[1731763149601,1.5883,220.35,220.27,23.87697225]
[1731763149814,20.0,220.34,220.27,0.10008825]
[1731763150609,27.04350063,220.34,220.27,0.10008825]
[1731763150806,0.4538,220.33,220.27,0.10008825]
[1731763150998,0.4538,220.33,220.27,8.825e-05]
[1731763151170,20.0,220.32,220.27,8.825e-05]
[1731763151383,27.04350063,220.32,220.27,8.825e-05]
[1731763151589,7.04350063,220.31,220.27,8.825e-05]
[1731763151778,20.0,220.3,220.27,8.825e-05]
[1731763152472,27.04350063,220.3,220.27,8.825e-05]
[1731763153073,0.4539,220.29,220.27,8.825e-05]
[1731763153470,20.0,220.28,220.27,8.825e-05]
[1731763154083,20.0,220.28,220.19,0.1]
[1731763154084,34.08700126,220.28,220.19,0.1]
[1731763154381,20.0,220.24,220.17,0.1]
[1731763154805,20.0,220.22,220.17,0.1]
[1731763155206,0.4541,220.21,220.17,0.1]
[1731763155679,0.4541,220.21,220.18,0.1]
[1731763155880,0.4541,220.21,220.19,0.1]
[1731763156681,20.0,220.24,220.19,0.1]
[1731763156682,0.454,220.24,220.19,0.1]
[1731763157491,0.454,220.24,220.18,0.1]
[1731763157697,0.454,220.24,220.19,0.1]
[1731763159207,0.454,220.24,220.18,0.1]
[1731763159415,0.454,220.24,220.19,0.1]
[1731763160684,7.57440903,220.24,220.19,0.1]
[1731763161011,0.454,220.22,220.19,0.1]
[1731763161533,0.454,220.22,220.21,0.1]
[1731763162901,0.454,220.25,220.22,0.1]
[1731763163814,0.454,220.25,220.17,0.1]
[1731763164114,27.12040903,220.24,220.17,0.1]
[1731763165131,0.454,220.23,220.17,0.1]
[1731763165499,0.454,220.23,220.17,0.2]
[1731763167405,20.0,220.22,220.17,0.1]
[1731763168096,28.70950903,220.23,220.17,0.1]
[1731763168624,21.5891,220.23,220.15,0.1]
[1731763168801,28.70950903,220.23,220.16,0.1]
[1731763169308,20.4541,220.21,220.16,0.1]
[1731763170704,0.4541,220.21,220.16,0.1]
[1731763173011,0.4541,220.21,220.15,0.1]
[1731763173200,0.4541,220.21,220.16,0.1]
[1731763173400,21.5891,220.23,220.16,0.1]
[1731763174001,21.5891,220.23,220.15,0.1]
[1731763174208,28.70950903,220.23,220.15,0.1]
[1731763174608,28.70950903,220.23,220.13,0.2]
[1731763174818,0.09367462,220.22,220.09,0.1]
[1731763175101,20.0,220.15,220.08,0.1]
[1731763175425,20.0,220.15,220.08,0.2]
[1731763175923,27.12040903,220.16,220.09,0.1]
[1731763176105,27.12040903,220.16,220.07,0.1]
[1731763176700,27.12040903,220.16,220.06,0.1]
[1731763176919,1.5897,220.15,220.05,0.617778]
[1731763180111,1.5897,220.15,220.07,0.1]
[1731763181125,1.5897,220.15,220.05,0.517778]
[1731763181126,0.4542,220.15,220.1,0.2]
[1731763181424,0.4542,220.15,220.08,0.1]
[1731763182323,1.1355,220.16,220.08,0.1]
[1731763183417,1.1355,220.16,220.06,23.976884]
[1731763183611,1.1355,220.16,220.06,23.876884]
[1731763184246,1.1355,220.16,220.06,0.1]
[1731763184622,1.1355,220.16,220.09,0.1]
[1731763185133,0.4541,220.18,220.12,0.1]
[1731763185331,0.4541,220.18,220.14,0.1]
[1731763186238,7.12040903,220.26,220.14,0.1]
[1731763186438,1.589,220.25,220.16,0.1]
[1731763188228,1.589,220.25,220.17,0.1]
[1731763188748,1.589,220.25,220.19,0.1]
[1731763189160,1.589,220.25,220.16,0.1]
[1731763189455,0.09367462,220.24,220.14,0.1]
[1731763189748,0.09367462,220.24,220.12,0.2]
[1731763189940,0.21916462,220.24,220.12,0.2]
[1731763190438,1.5891,220.23,220.14,0.1]
[1731763191936,1.5891,220.23,220.12,0.2]
[1731763192243,0.34465462,220.22,220.1,0.1]
[1731763192655,20.34465462,220.22,220.1,0.1]
[1731763192838,27.46506365,220.22,220.1,0.1]
[1731763193454,20.34465462,220.2,220.1,0.1]
[1731763193748,0.09367462,220.21,220.1,0.1]
[1731763194433,1.5894,220.2,220.1,0.1]
[1731763195043,0.34465462,220.19,220.07,0.1]
[1731763195246,0.34465462,220.19,220.09,0.1]
[1731763195431,0.34465462,220.19,220.07,0.1]
[1731763195747,0.34465462,220.19,220.05,0.517778]
[1731763195748,0.34465462,220.19,220.05,0.617778]
[1731763195955,0.34465462,220.19,220.07,0.1]
[1731763196349,0.34465462,220.17,220.07,0.1]
[1731763197747,0.21916462,220.15,220.05,0.617778]
[1731763198845,0.4542,220.14,220.05,0.617778]
[1731763199378,1.5898,220.14,220.05,0.617778]
[1731763199560,0.34465462,220.13,220.05,0.517778]
[1731763200773,1.5898,220.14,220.05,0.717778]
[1731763201080,0.4542,220.14,220.09,0.1]
[1731763202573,7.12040903,220.17,220.09,0.1]
[1731763202757,0.4542,220.16,220.09,0.1]
[1731763202961,0.4542,220.16,220.08,0.1]
[1731763203566,0.21916462,220.15,220.05,0.617778]
[1731763204083,0.21916462,220.15,220.06,0.1]
[1731763204454,7.33957365,220.15,220.06,0.1]
[1731763204661,0.4542,220.13,220.06,0.1]
[1731763205073,0.4542,220.13,220.08,0.2]
[1731763205858,0.4542,220.13,220.12,0.1]
[1731763206057,0.4541,220.17,220.14,0.1]
[1731763206882,0.4541,220.2,220.14,0.1]
[1731763207883,0.4541,220.2,220.15,0.1]
[1731763208084,0.4541,220.2,220.06,48.76405257]
[1731763208085,0.4541,220.2,220.17,0.1]
[1731763208380,0.4541,220.2,220.19,0.1]
[1731763208760,7.57440903,220.25,220.19,0.1]
[1731763209170,0.454,220.25,220.19,0.1]
[1731763209487,20.0,220.24,220.19,0.1]
[1731763210587,0.454,220.23,220.19,0.1]
[1731763211573,0.454,220.23,220.15,0.1]
[1731763211761,0.454,220.23,220.17,0.1]
[1731763211961,0.454,220.23,220.18,0.1]
[1731763212362,7.57440903,220.25,220.24,0.1]
[1731763212567,0.4539,220.28,220.24,0.1]
[1731763212767,0.4539,220.28,220.23,0.1]
[1731763212975,0.4539,220.28,220.21,0.1]
[1731763213162,0.09367462,220.27,220.18,0.2]
[1731763213357,0.09367462,220.27,220.13,11.3567]
[1731763213358,7.21408365,220.27,220.16,0.1]
[1731763213574,7.21408365,220.27,220.19,0.1]
[1731763213575,7.12040903,220.24,220.19,0.1]
[1731763213773,20.0,220.24,220.19,0.2]
[1731763213977,20.0,220.25,220.19,0.1]
[1731763214181,20.0,220.25,220.19,0.2]
[1731763214377,20.0,220.25,220.21,0.1]
[1731763214587,0.454,220.24,220.22,0.1]
[1731763214793,0.454,220.24,220.23,0.1]
[1731763214969,0.454,220.24,220.22,0.1]
[1731763215169,0.454,220.24,220.23,0.1]
[1731763215683,0.4539,220.28,220.23,0.1]
[1731763215882,20.4539,220.28,220.23,0.1]
[1731763216078,0.4539,220.3,220.28,0.1]
[1731763216279,0.4538,220.32,220.29,0.1]
[1731763216494,0.09367462,220.31,220.23,0.1]
[1731763216673,7.12040903,220.3,220.23,0.1]
[1731763217072,7.21408365,220.31,220.22,0.1]
[1731763217385,20.0,220.29,220.24,0.1]
[1731763217587,0.4539,220.28,220.22,0.1]
[1731763217776,0.4539,220.28,220.24,0.1]
[1731763217973,0.4539,220.28,220.22,0.1]
[1731763217974,0.4539,220.28,220.27,0.1]
[1731763218179,0.4538,220.33,220.3,0.1]
[1731763218372,0.4538,220.33,220.23,13.62666857]
[1731763218373,0.4537,220.38,220.34,0.1]
[1731763218588,0.4537,220.37,220.34,0.1]
[1731763219499,0.4537,220.39,220.34,0.2]
[1731763219696,0.4537,220.41,220.34,0.2]
[1731763220402,7.12040903,220.48,220.34,0.2]
[1731763220693,0.4536,220.43,220.34,37.60355257]
[1731763222571,0.09367462,220.5,220.34,37.60355257]
[1731763222777,0.09367462,220.48,220.4,0.1]
[1731763223101,0.09367462,220.48,220.4,0.2]
[1731763223597,0.09367462,220.48,220.4,0.1]
[1731763224895,0.4535,220.47,220.42,0.1]
[1731763226100,0.09367462,220.49,220.42,0.1]
[1731763226402,0.54717462,220.49,220.42,0.1]
[1731763228884,0.4535,220.49,220.44,0.1]
[1731763229092,1.1334,220.57,220.48,0.2]
[1731763229300,0.4534,220.55,220.48,0.2]
[1731763230187,2.2667,220.58,220.48,0.2]
[1731763230496,0.09367462,220.57,220.48,0.2]
[1731763230682,2.2667,220.58,220.48,0.2]
[1731763231104,0.09367462,220.57,220.48,0.2]
[1731763231388,0.4533,220.56,220.48,0.2]
[1731763231583,20.0,220.64,220.54,0.1]
[1731763231584,1.5862,220.64,220.54,0.1]
[1731763231790,1.5862,220.64,220.52,0.2]
[1731763232097,1.5862,220.64,220.5,23.776884]
[1731763232098,1.5862,220.64,220.51,0.1]
[1731763232310,3.8523,220.64,220.52,0.1]
[1731763232612,0.09367462,220.63,220.52,0.2]
[1731763232905,3.8523,220.64,220.55,0.1]
[1731763233301,0.09367462,220.63,220.53,0.1]
[1731763233608,0.09367462,220.61,220.53,0.1]
[1731763233813,1.5863,220.62,220.51,0.1]
[1731763233995,0.09367462,220.61,220.52,0.1]
[1731763234197,0.34465462,220.61,220.52,0.1]
[1731763235215,2.2661,220.64,220.55,0.1]
[1731763235400,1.586,220.67,220.55,0.1]
[1731763235401,24.027864,220.66,220.55,0.1]
[1731763235603,0.09367462,220.63,220.54,0.1]
[1731763235798,0.21916462,220.63,220.54,0.1]
[1731763235998,0.21916462,220.61,220.53,0.1]
[1731763236309,0.21916462,220.61,220.54,0.1]
[1731763237121,0.4533,220.6,220.54,0.1]
[1731763237709,0.4533,220.6,220.56,0.1]
[1731763238099,0.4533,220.6,220.55,0.1]
[1731763238100,0.4533,220.6,220.53,0.1]
[1731763238289,0.4533,220.6,220.51,0.1]
[1731763238290,0.09367462,220.59,220.51,0.1]
[1731763238492,0.09367462,220.59,220.47,0.2]
[1731763238689,0.09367462,220.59,220.43,0.2]
[1731763238690,23.87055862,220.59,220.43,0.2]
[1731763238894,23.87055862,220.59,220.43,0.1]
[1731763239199,0.09367462,220.55,220.44,0.1]
[1731763240401,0.34465462,220.53,220.44,0.1]
[1731763241818,0.09367462,220.51,220.44,0.1]
[1731763242021,0.21916462,220.51,220.44,0.1]
[1731763242207,0.4534,220.52,220.44,0.1]
[1731763243104,0.4534,220.52,220.45,0.1]
[1731763243617,0.4534,220.52,220.43,0.2]
[1731763244503,0.4535,220.5,220.45,0.1]
[1731763245831,0.4535,220.5,220.45,0.2]
[1731763246026,0.4535,220.5,220.48,0.1]
[1731763246618,1.1333,220.59,220.5,0.1]
[1731763246817,0.4533,220.57,220.52,0.1]
[1731763247519,0.4533,220.57,220.52,0.2]
[1731763247719,7.25495339,220.6,220.54,0.1]
[1731763247919,0.4533,220.59,220.55,0.1]
[1731763249720,20.4533,220.59,220.55,0.1]
[1731763251624,20.4533,220.59,220.54,0.1]
[1731763255035,0.25098,220.58,220.5,0.1]
[1731763255251,0.25098,220.58,220.52,0.1]
[1731763255437,0.21916462,220.57,220.48,0.2]
[1731763255622,0.25098,220.56,220.48,0.1]
[1731763256920,0.4534,220.55,220.48,0.1]
[1731763257331,0.4534,220.55,220.48,0.2]
[1731763258616,0.09367462,220.53,220.46,0.2]
[1731763258827,0.21916462,220.53,220.46,0.2]
[1731763259047,0.12549,220.52,220.46,0.2]
[1731763260855,0.4534,220.51,220.46,0.2]
[1731763262736,0.12549,220.5,220.44,0.1]
[1731763262936,0.09367462,220.49,220.43,0.1]
[1731763263157,0.09367462,220.49,220.33,4.5385]
[1731763263158,0.12549,220.46,220.39,0.1]
[1731763263336,0.25098,220.46,220.39,0.1]
[1731763264960,0.4536,220.45,220.39,0.1]
[1731763267861,0.4536,220.45,220.41,0.1]
[1731763268042,0.4536,220.45,220.43,0.1]
[1731763268368,30.44110252,220.55,220.46,0.1]
[1731763268369,0.4535,220.5,220.46,0.1]
[1731763268951,0.4534,220.53,220.46,0.1]
[1731763269146,7.57380903,220.53,220.46,0.1]
[1731763269344,20.0,220.52,220.46,0.1]
[1731763270274,0.4534,220.51,220.46,0.1]
[1731763270855,7.24589903,220.49,220.4,0.1]
[1731763271052,0.12549,220.47,220.4,0.1]
[1731763271365,0.21916462,220.46,220.4,0.1]
[1731763271751,20.21916462,220.46,220.4,0.1]
[1731763272157,0.4536,220.45,220.4,0.1]
[1731763272347,0.4536,220.45,220.42,0.1]
[1731763272967,0.4535,220.5,220.46,0.1]
[1731763273341,0.09367462,220.49,220.4,0.1]
[1731763273559,7.12040903,220.47,220.4,0.1]
[1731763273948,7.12040903,220.48,220.4,0.1]
[1731763274159,0.4535,220.46,220.4,0.1]
[1731763275174,0.4535,220.46,220.45,0.1]
[1731763275753,0.4535,220.46,220.36,24.97156857]
[1731763275754,0.4535,220.46,220.42,0.1]
[1731763275954,0.4535,220.46,220.4,0.1]
[1731763276174,0.4535,220.46,220.44,0.1]
[1731763277268,0.4535,220.49,220.44,0.1]
[1731763278175,0.4535,220.49,220.36,11.3449]
[1731763278176,0.4535,220.49,220.42,0.1]
[1731763278352,20.21916462,220.48,220.4,0.1]
[1731763279463,0.4535,220.47,220.4,0.1]
[1731763281084,20.34465462,220.46,220.4,0.1]
[1731763281677,20.34465462,220.46,220.37,0.1]
[1731763281986,20.34465462,220.46,220.39,0.1]
[1731763282186,0.12549,220.44,220.37,0.1]
[1731763282684,0.12549,220.44,220.39,0.1]
[1731763283191,0.4536,220.43,220.39,0.1]
[1731763283760,0.4536,220.43,220.37,0.1]
[1731763283966,0.4536,220.43,220.29,22.6965]
[1731763283967,0.34465462,220.42,220.35,0.1]
[1731763284163,0.34465462,220.42,220.33,0.1]
[1731763284164,20.34465462,220.42,220.33,0.1]
[1731763284368,27.46506365,220.42,220.33,0.1]
[1731763284877,27.46506365,220.42,220.31,0.1]
[1731763285076,0.4536,220.43,220.4,0.1]
[1731763285466,0.4536,220.43,220.36,0.1]
[1731763286185,0.4536,220.43,220.38,0.1]
[1731763286385,0.4536,220.43,220.36,0.1]
[1731763287487,0.12549,220.4,220.34,0.1]
[1731763288271,0.21916462,220.4,220.32,0.1]
[1731763288490,0.21916462,220.4,220.3,0.1]
[1731763288672,0.21916462,220.4,220.32,0.1]
[1731763288995,0.12549,220.4,220.34,0.1]
[1731763289197,0.4536,220.41,220.34,0.1]
[1731763289385,0.4536,220.41,220.38,0.1]
[1731763289584,0.4536,220.41,220.27,0.1]
[1731763289585,0.12549,220.4,220.33,0.1]
[1731763290797,0.4537,220.39,220.33,0.1]
[1731763295176,0.4537,220.39,220.37,0.1]
[1731763300407,0.4537,220.41,220.37,0.1]
[1731763302075,0.4537,220.41,220.34,0.1]
[1731763302291,0.4537,220.41,220.36,0.1]
[1731763302999,0.4537,220.41,220.39,0.1]
[1731763303183,20.0,220.42,220.39,0.1]
[1731763303499,70.43500632,220.53,220.43,0.1]
[1731763303500,7.12040903,220.47,220.43,0.1]
[1731763304002,7.57390903,220.47,220.43,0.1]
[1731763304601,20.0,220.46,220.43,0.1]
[1731763305188,0.4536,220.45,220.43,0.1]
[1731763307305,7.57400903,220.45,220.43,0.1]
[1731763307608,20.0,220.44,220.43,0.1]
[1731763308682,0.4536,220.43,220.4,0.1]
[1731763308897,20.0,220.42,220.38,0.1]
[1731763309100,20.0,220.42,220.4,0.1]
[1731763309519,27.12040903,220.42,220.4,0.1]
[1731763309690,0.4536,220.41,220.4,0.1]
[1731763320505,27.57400903,220.41,220.4,0.1]
[1731763320829,20.0,220.4,220.38,0.1]
[1731763321406,27.12291308,220.4,220.38,0.1]
[1731763321618,20.0,220.4,220.38,0.1]
[1731763321815,27.12291308,220.4,220.38,0.1]
[1731763322000,20.0,220.4,220.37,0.9]
[1731763322313,20.0,220.37,220.32,0.1]
[1731763322518,27.12291308,220.37,220.34,0.1]
[1731763322825,20.0,220.37,220.32,0.1]
[1731763323032,20.0,220.34,220.32,0.1]
[1731763323528,20.0,220.34,220.29,0.1]
[1731763323913,27.12291308,220.34,220.29,0.1]
[1731763324226,0.4538,220.33,220.29,0.1]
[1731763324611,0.4538,220.33,220.32,0.1]
[1731763326330,20.4538,220.35,220.32,0.1]
[1731763327928,27.57671308,220.35,220.32,0.1]
[1731763328632,27.57671308,220.35,220.3,0.1]
[1731763330221,27.57671308,220.35,220.28,0.1]
[1731763330417,7.12291308,220.34,220.28,0.1]
[1731763330634,20.4538,220.33,220.28,0.1]
[1731763331645,27.57671308,220.33,220.26,0.1]
[1731763332341,0.12549,220.3,220.23,0.1]
[1731763332724,0.4539,220.29,220.23,0.1]
[1731763333417,20.4539,220.29,220.23,0.1]
[1731763333619,0.4539,220.29,220.23,0.1]
[1731763333822,1.5887,220.29,220.21,0.1]
[1731763334234,21.5887,220.29,220.21,0.1]
[1731763334430,1.5887,220.29,220.21,0.1]
[1731763335451,1.5887,220.29,220.23,0.1]
[1731763335647,0.4539,220.29,220.25,0.1]
[1731763335831,0.4539,220.29,220.27,0.1]
[1731763336948,0.4539,220.31,220.27,0.1]
[1731763337136,20.4539,220.31,220.27,0.1]
[1731763337736,0.4539,220.31,220.27,0.1]
[1731763337942,0.4539,220.29,220.27,0.1]
[1731763338450,0.4539,220.29,220.23,0.1]
[1731763339469,0.4539,220.29,220.25,0.1]
[1731763339629,0.4539,220.31,220.25,0.1]
[1731763339830,20.0,220.27,220.25,0.1]
[1731763340630,0.454,220.26,220.25,0.1]
[1731763342639,20.4539,220.29,220.28,0.1]
[1731763342951,0.4539,220.29,220.21,23.99604862]
[1731763343761,0.4539,220.29,220.18,23.776884]
[1731763344741,0.4539,220.29,220.19,0.09367462]
[1731763346761,0.12549,220.28,220.13,13.60986613]
[1731763347068,0.12549,220.28,220.14,0.09367462]
[1731763347646,0.30623048,220.27,220.14,0.09367462]
[1731763347955,0.454,220.26,220.14,23.87055862]
[1731763350739,0.454,220.26,220.14,37.48042475]